{"text_format":"3","workbook":"xlsx","n_sheets":2,"sheets":["Projektspårare","Inställning"],"not_rendered":{"defined_names":6},"read":"whole","date_system":"1900"}

{"sheet":"Projektspårare","index":0,"n_rows":13,"n_cols":15,"rows_kept":13}
[null,"Projektspårare"]
[null,null,"Procent över/under att flagga: ",{"v":0.25,"d":"25%"}]
[]
[null,"Projekt","Kategori","Tilldelat till","Beräknad\nstart","Beräknat \nslut","Beräknat arbete (i timmar)","Beräknad varaktighet (i dagar)","Faktisk \nstart","Faktisk\nslut","Flaggikon för Över/under faktiskt arbete (i timmar)","Faktiskt arbete (i timmar)","Flaggikon för Över/under faktisk varaktighet (i dagar)","Faktisk varaktighet (i dagar)","Anteckningar"]
[null,"Projekt 1","Kategori 1","Anställd 1",{"$f":"TODAY()-65","v":"2016-10-17"},{"$f":"TODAY()-5","v":"2016-12-16"},210,{"$f":"IF(COUNTA(Projektspårare!$E5,Projektspårare!$F5)<>2,\"\",DAYS360(Projektspårare!$E5,Projektspårare!$F5,FALSE))","v":59},{"$f":"TODAY()-65","v":"2016-10-17"},{"$f":"TODAY()","v":"2016-12-21"},{"$f":"IFERROR(IF(Projektspårare[Faktiskt arbete (i timmar)]=0,\"\",IF(ABS((Projektspårare[[#This Row],[Faktiskt arbete (i timmar)]]-Projektspårare[[#This Row],[Beräknat arbete (i timmar)]])/Projektspårare[[#This Row],[Beräknat arbete (i timmar)]])>FlaggaProcent,1,0)),\"\")","v":1},300,{"$f":"IFERROR(IF(Projektspårare[Faktisk varaktighet (i dagar)]=0,\"\",IF(ABS((Projektspårare[[#This Row],[Faktisk varaktighet (i dagar)]]-Projektspårare[[#This Row],[Beräknad varaktighet (i dagar)]])/Projektspårare[[#This Row],[Beräknad varaktighet (i dagar)]])>FlaggaProcent,1,0)),\"\")","v":0},{"$f":"IF(COUNTA(Projektspårare!$I5,Projektspårare!$J5)<>2,\"\",DAYS360(Projektspårare!$I5,Projektspårare!$J5,FALSE))","v":64}]
[null,"Projekt 2","Kategori 2","Anställd 4",{"$f":"TODAY()-41","v":"2016-11-10"},{"$f":"TODAY()-10","v":"2016-12-11"},400,{"$f":"IF(COUNTA(Projektspårare!$E6,Projektspårare!$F6)<>2,\"\",DAYS360(Projektspårare!$E6,Projektspårare!$F6,FALSE))","v":31},{"$f":"TODAY()-41","v":"2016-11-10"},{"$f":"TODAY()-7","v":"2016-12-14"},{"$f":"IFERROR(IF(Projektspårare[Faktiskt arbete (i timmar)]=0,\"\",IF(ABS((Projektspårare[[#This Row],[Faktiskt arbete (i timmar)]]-Projektspårare[[#This Row],[Beräknat arbete (i timmar)]])/Projektspårare[[#This Row],[Beräknat arbete (i timmar)]])>FlaggaProcent,1,0)),\"\")","v":0},390,{"$f":"IFERROR(IF(Projektspårare[Faktisk varaktighet (i dagar)]=0,\"\",IF(ABS((Projektspårare[[#This Row],[Faktisk varaktighet (i dagar)]]-Projektspårare[[#This Row],[Beräknad varaktighet (i dagar)]])/Projektspårare[[#This Row],[Beräknad varaktighet (i dagar)]])>FlaggaProcent,1,0)),\"\")","v":0},{"$f":"IF(COUNTA(Projektspårare!$I6,Projektspårare!$J6)<>2,\"\",DAYS360(Projektspårare!$I6,Projektspårare!$J6,FALSE))","v":34}]
[null,"Projekt 3","Kategori 1","Anställd 2",{"$f":"TODAY()-100","v":"2016-09-12"},{"$f":"TODAY()-40","v":"2016-11-11"},500,{"$f":"IF(COUNTA(Projektspårare!$E7,Projektspårare!$F7)<>2,\"\",DAYS360(Projektspårare!$E7,Projektspårare!$F7,FALSE))","v":59},{"$f":"TODAY()-100","v":"2016-09-12"},{"$f":"TODAY()-27","v":"2016-11-24"},{"$f":"IFERROR(IF(Projektspårare[Faktiskt arbete (i timmar)]=0,\"\",IF(ABS((Projektspårare[[#This Row],[Faktiskt arbete (i timmar)]]-Projektspårare[[#This Row],[Beräknat arbete (i timmar)]])/Projektspårare[[#This Row],[Beräknat arbete (i timmar)]])>FlaggaProcent,1,0)),\"\")","v":0},500,{"$f":"IFERROR(IF(Projektspårare[Faktisk varaktighet (i dagar)]=0,\"\",IF(ABS((Projektspårare[[#This Row],[Faktisk varaktighet (i dagar)]]-Projektspårare[[#This Row],[Beräknad varaktighet (i dagar)]])/Projektspårare[[#This Row],[Beräknad varaktighet (i dagar)]])>FlaggaProcent,1,0)),\"\")","v":0},{"$f":"IF(COUNTA(Projektspårare!$I7,Projektspårare!$J7)<>2,\"\",DAYS360(Projektspårare!$I7,Projektspårare!$J7,FALSE))","v":72}]
[null,"Projekt 4","Kategori 2","Anställd 3",{"$f":"TODAY()-90","v":"2016-09-22"},{"$f":"TODAY()-80","v":"2016-10-02"},250,{"$f":"IF(COUNTA(Projektspårare!$E8,Projektspårare!$F8)<>2,\"\",DAYS360(Projektspårare!$E8,Projektspårare!$F8,FALSE))","v":10},{"$f":"TODAY()-90","v":"2016-09-22"},{"$f":"TODAY()-71","v":"2016-10-11"},{"$f":"IFERROR(IF(Projektspårare[Faktiskt arbete (i timmar)]=0,\"\",IF(ABS((Projektspårare[[#This Row],[Faktiskt arbete (i timmar)]]-Projektspårare[[#This Row],[Beräknat arbete (i timmar)]])/Projektspårare[[#This Row],[Beräknat arbete (i timmar)]])>FlaggaProcent,1,0)),\"\")","v":0},276,{"$f":"IFERROR(IF(Projektspårare[Faktisk varaktighet (i dagar)]=0,\"\",IF(ABS((Projektspårare[[#This Row],[Faktisk varaktighet (i dagar)]]-Projektspårare[[#This Row],[Beräknad varaktighet (i dagar)]])/Projektspårare[[#This Row],[Beräknad varaktighet (i dagar)]])>FlaggaProcent,1,0)),\"\")","v":1},{"$f":"IF(COUNTA(Projektspårare!$I8,Projektspårare!$J8)<>2,\"\",DAYS360(Projektspårare!$I8,Projektspårare!$J8,FALSE))","v":19}]
[null,"Projekt 5","Kategori 3","Anställd 2",{"$f":"TODAY()-90","v":"2016-09-22"},{"$f":"TODAY()-50","v":"2016-11-01"},300,{"$f":"IF(COUNTA(Projektspårare!$E9,Projektspårare!$F9)<>2,\"\",DAYS360(Projektspårare!$E9,Projektspårare!$F9,FALSE))","v":39},{"$f":"TODAY()-90","v":"2016-09-22"},{"$f":"TODAY()-44","v":"2016-11-07"},{"$f":"IFERROR(IF(Projektspårare[Faktiskt arbete (i timmar)]=0,\"\",IF(ABS((Projektspårare[[#This Row],[Faktiskt arbete (i timmar)]]-Projektspårare[[#This Row],[Beräknat arbete (i timmar)]])/Projektspårare[[#This Row],[Beräknat arbete (i timmar)]])>FlaggaProcent,1,0)),\"\")","v":0},310,{"$f":"IFERROR(IF(Projektspårare[Faktisk varaktighet (i dagar)]=0,\"\",IF(ABS((Projektspårare[[#This Row],[Faktisk varaktighet (i dagar)]]-Projektspårare[[#This Row],[Beräknad varaktighet (i dagar)]])/Projektspårare[[#This Row],[Beräknad varaktighet (i dagar)]])>FlaggaProcent,1,0)),\"\")","v":0},{"$f":"IF(COUNTA(Projektspårare!$I9,Projektspårare!$J9)<>2,\"\",DAYS360(Projektspårare!$I9,Projektspårare!$J9,FALSE))","v":45}]
[null,"Projekt 6","Kategori 4","Anställd 4",{"$f":"TODAY()-60","v":"2016-10-22"},{"$f":"TODAY()-50","v":"2016-11-01"},500,{"$f":"IF(COUNTA(Projektspårare!$E10,Projektspårare!$F10)<>2,\"\",DAYS360(Projektspårare!$E10,Projektspårare!$F10,FALSE))","v":9},{"$f":"TODAY()-60","v":"2016-10-22"},{"$f":"TODAY()-45","v":"2016-11-06"},{"$f":"IFERROR(IF(Projektspårare[Faktiskt arbete (i timmar)]=0,\"\",IF(ABS((Projektspårare[[#This Row],[Faktiskt arbete (i timmar)]]-Projektspårare[[#This Row],[Beräknat arbete (i timmar)]])/Projektspårare[[#This Row],[Beräknat arbete (i timmar)]])>FlaggaProcent,1,0)),\"\")","v":0},510,{"$f":"IFERROR(IF(Projektspårare[Faktisk varaktighet (i dagar)]=0,\"\",IF(ABS((Projektspårare[[#This Row],[Faktisk varaktighet (i dagar)]]-Projektspårare[[#This Row],[Beräknad varaktighet (i dagar)]])/Projektspårare[[#This Row],[Beräknad varaktighet (i dagar)]])>FlaggaProcent,1,0)),\"\")","v":1},{"$f":"IF(COUNTA(Projektspårare!$I10,Projektspårare!$J10)<>2,\"\",DAYS360(Projektspårare!$I10,Projektspårare!$J10,FALSE))","v":14}]
[null,"Projekt 7","Kategori 5","Anställd 1",{"$f":"TODAY()-44","v":"2016-11-07"},{"$f":"TODAY()-20","v":"2016-12-01"},750,{"$f":"IF(COUNTA(Projektspårare!$E11,Projektspårare!$F11)<>2,\"\",DAYS360(Projektspårare!$E11,Projektspårare!$F11,FALSE))","v":24},{"$f":"TODAY()-44","v":"2016-11-07"},{"$f":"TODAY()-15","v":"2016-12-06"},{"$f":"IFERROR(IF(Projektspårare[Faktiskt arbete (i timmar)]=0,\"\",IF(ABS((Projektspårare[[#This Row],[Faktiskt arbete (i timmar)]]-Projektspårare[[#This Row],[Beräknat arbete (i timmar)]])/Projektspårare[[#This Row],[Beräknat arbete (i timmar)]])>FlaggaProcent,1,0)),\"\")","v":0},790,{"$f":"IFERROR(IF(Projektspårare[Faktisk varaktighet (i dagar)]=0,\"\",IF(ABS((Projektspårare[[#This Row],[Faktisk varaktighet (i dagar)]]-Projektspårare[[#This Row],[Beräknad varaktighet (i dagar)]])/Projektspårare[[#This Row],[Beräknad varaktighet (i dagar)]])>FlaggaProcent,1,0)),\"\")","v":0},{"$f":"IF(COUNTA(Projektspårare!$I11,Projektspårare!$J11)<>2,\"\",DAYS360(Projektspårare!$I11,Projektspårare!$J11,FALSE))","v":29}]
[null,"Projekt 8","Kategori 2","Anställd 1",{"$f":"TODAY()-39","v":"2016-11-12"},{"$f":"TODAY()","v":"2016-12-21"},450,{"$f":"IF(COUNTA(Projektspårare!$E12,Projektspårare!$F12)<>2,\"\",DAYS360(Projektspårare!$E12,Projektspårare!$F12,FALSE))","v":39},{"$f":"TODAY()-45","v":"2016-11-06"},{"$f":"TODAY()-5","v":"2016-12-16"},{"$f":"IFERROR(IF(Projektspårare[Faktiskt arbete (i timmar)]=0,\"\",IF(ABS((Projektspårare[[#This Row],[Faktiskt arbete (i timmar)]]-Projektspårare[[#This Row],[Beräknat arbete (i timmar)]])/Projektspårare[[#This Row],[Beräknat arbete (i timmar)]])>FlaggaProcent,1,0)),\"\")","v":0},430,{"$f":"IFERROR(IF(Projektspårare[Faktisk varaktighet (i dagar)]=0,\"\",IF(ABS((Projektspårare[[#This Row],[Faktisk varaktighet (i dagar)]]-Projektspårare[[#This Row],[Beräknad varaktighet (i dagar)]])/Projektspårare[[#This Row],[Beräknad varaktighet (i dagar)]])>FlaggaProcent,1,0)),\"\")","v":0},{"$f":"IF(COUNTA(Projektspårare!$I12,Projektspårare!$J12)<>2,\"\",DAYS360(Projektspårare!$I12,Projektspårare!$J12,FALSE))","v":40}]
[null,"Projekt 9","Kategori 4","Anställd 1","2016-02-05","2016-06-09",250,{"$f":"IF(COUNTA(Projektspårare!$E13,Projektspårare!$F13)<>2,\"\",DAYS360(Projektspårare!$E13,Projektspårare!$F13,FALSE))","v":124},"2016-03-05","2016-05-05",{"$f":"IFERROR(IF(Projektspårare[Faktiskt arbete (i timmar)]=0,\"\",IF(ABS((Projektspårare[[#This Row],[Faktiskt arbete (i timmar)]]-Projektspårare[[#This Row],[Beräknat arbete (i timmar)]])/Projektspårare[[#This Row],[Beräknat arbete (i timmar)]])>FlaggaProcent,1,0)),\"\")","v":0},200,{"$f":"IFERROR(IF(Projektspårare[Faktisk varaktighet (i dagar)]=0,\"\",IF(ABS((Projektspårare[[#This Row],[Faktisk varaktighet (i dagar)]]-Projektspårare[[#This Row],[Beräknad varaktighet (i dagar)]])/Projektspårare[[#This Row],[Beräknad varaktighet (i dagar)]])>FlaggaProcent,1,0)),\"\")","v":1},{"$f":"IF(COUNTA(Projektspårare!$I13,Projektspårare!$J13)<>2,\"\",DAYS360(Projektspårare!$I13,Projektspårare!$J13,FALSE))","v":60}]

{"sheet":"Inställning","index":1,"n_rows":10,"n_cols":3,"rows_kept":10}
[null,"Inställning"]
[]
[]
[null,"Kategorinamn","Namn på anställd"]
[null,"Kategori 1","Anställd 1"]
[null,"Kategori 2","Anställd 2"]
[null,"Kategori 3","Anställd 3"]
[null,"Kategori 4","Anställd 4"]
[null,"Kategori 5","Anställd 5"]
[null,"Kategori 6","Anställd 6"]